bitfinex/quotes_ETHUSD_20260110
["timestamp","ask_amount","ask_price","bid_price","bid_amount"]
[1768028777950,0.30351479,3089.5,3089.2,1.17119941]
[1768028778148,0.002,3089.6,3089.2,1.17119941]
[1768028778445,0.30355355,3089.5,3089.2,1.17119941]
[1768028778617,0.00070523,3089.6,3089.2,1.17119941]
[1768028778818,0.30355355,3089.5,3089.2,1.17119941]
[1768028779011,0.00070523,3089.6,3089.2,1.17119941]
[1768028779214,0.30355901,3089.5,3089.2,1.17119941]
[1768028779415,0.00070523,3089.6,3089.2,1.17119941]
[1768028779641,0.30359942,3089.5,3089.2,1.17119941]
[1768028779850,0.00070523,3089.6,3089.2,1.17119941]
[1768028780050,0.30359939,3089.5,3089.2,1.17119941]
[1768028780250,0.00070523,3089.6,3089.2,1.17119941]
[1768028780418,0.3036277,3089.5,3089.2,1.17119941]
[1768028780618,0.00070523,3089.6,3089.2,1.17119941]
[1768028780825,0.3036277,3089.5,3089.2,1.17119941]
[1768028781043,0.00070523,3089.6,3089.2,1.17119941]
[1768028781244,0.30363148,3089.5,3089.2,1.17119941]
[1768028781451,0.00070523,3089.6,3089.2,1.17119941]
[1768028781665,0.30366198,3089.5,3089.2,1.17119941]
[1768028781822,0.00070523,3089.6,3089.2,1.17119941]
[1768028782023,0.3036602,3089.5,3089.2,1.17119941]
[1768028782357,0.00070523,3089.6,3089.2,1.17119941]
[1768028782551,0.30370107,3089.5,3089.2,1.17119941]
[1768028782756,0.00070523,3089.6,3089.2,1.17119941]
[1768028782956,0.30370107,3089.5,3089.2,1.17119941]
[1768028783255,0.30373255,3089.4,3089.2,1.17119941]
[1768028783449,0.00070523,3089.6,3089.2,1.17119941]
[1768028783653,0.30373252,3089.5,3089.2,1.17119941]
[1768028783856,0.30373252,3089.4,3089.2,1.17119941]
[1768028784046,0.00070523,3089.6,3089.2,1.17119941]
[1768028784246,0.30373095,3089.5,3089.2,1.17119941]
[1768028784547,0.00070523,3089.6,3089.2,1.17119941]
[1768028784758,0.30373158,3089.5,3089.2,1.17119941]
[1768028784951,0.30373158,3089.4,3089.2,1.17119941]
[1768028785148,0.00070523,3089.6,3089.2,1.17119941]
[1768028785385,0.30373167,3089.5,3089.2,1.17119941]
[1768028785560,0.30373252,3089.4,3089.2,1.17119941]
[1768028785727,0.00070523,3089.6,3089.2,1.17119941]
[1768028786025,0.30373337,3089.5,3089.2,1.17119941]
[1768028786221,0.00070523,3089.6,3089.2,1.17119941]
[1768028786222,0.30373337,3089.4,3089.2,1.17119941]
[1768028786426,0.00070523,3089.6,3089.2,1.17119941]
[1768028786625,0.30373532,3089.5,3089.2,1.17119941]
[1768028786825,0.30373532,3089.4,3089.2,1.17119941]
[1768028787058,0.00070523,3089.6,3089.2,1.17119941]
[1768028787260,0.30373879,3089.5,3089.2,1.17119941]
[1768028787462,0.30373879,3089.4,3089.2,1.17119941]
[1768028787640,0.00070523,3089.6,3089.2,1.17119941]
[1768028787842,0.30373879,3089.5,3089.2,1.17119941]
[1768028788042,0.30373879,3089.4,3089.2,1.17119941]
[1768028788262,0.00070523,3089.6,3089.2,1.17119941]
[1768028788462,0.3037432,3089.5,3089.2,1.17119941]
[1768028788652,0.3037432,3089.4,3089.2,1.17119941]
[1768028788955,0.00070523,3089.6,3089.2,1.17119941]
[1768028789257,0.3037432,3089.5,3089.2,1.17119941]
[1768028789458,0.3037432,3089.4,3089.2,1.17119941]
[1768028789658,0.00070523,3089.6,3089.2,1.17119941]
[1768028789964,0.30374898,3089.5,3089.2,1.17119941]
[1768028790146,0.30374898,3089.4,3089.2,1.17119941]
[1768028790346,0.00070523,3089.6,3089.2,1.17119941]
[1768028790535,0.30374889,3089.5,3089.2,1.17119941]
[1768028790835,0.30374889,3089.4,3089.2,1.17119941]
[1768028791175,0.00070523,3089.6,3089.3,0.91619941]
[1768028806353,0.002,3089.9,3089.6,0.97502959]
[1768028806554,0.002,3089.9,3089.7,1.23002959]
[1768028808164,0.002,3090.2,3089.9,0.97502959]
[1768028808422,0.30340912,3090.1,3089.9,0.97502959]
[1768028808573,0.002,3090.2,3089.9,0.97502959]
[1768028810768,0.002,3090.2,3089.7,0.255]
[1768028811393,0.002,3090.2,3089.8,0.90715356]
[1768028812908,0.002,3089.9,3089.7,0.255]
[1768028813080,0.002,3089.9,3089.8,0.90715356]
[1768028814305,0.002,3089.9,3089.7,0.255]
[1768028817510,0.002,3089.9,3089.8,0.90715356]
[1768028818709,0.002,3090.2,3089.9,0.90715356]
[1768028819488,0.002,3090.2,3089.6,0.00180664]
[1768028819682,0.30309261,3090.1,3089.6,0.00180664]
[1768028819881,0.30309261,3090.0,3089.7,0.255]
[1768028820085,0.002,3090.2,3089.7,0.255]
[1768028820280,0.30312871,3090.1,3089.7,0.255]
[1768028820505,0.30312871,3090.0,3089.7,0.255]
[1768028820820,0.162,3090.1,3089.7,0.093]
[1768028821119,0.30312881,3090.0,3089.7,0.093]
[1768028821409,0.002,3090.2,3089.7,0.093]
[1768028821616,3.53931971,3090.1,3089.7,0.093]
[1768028821791,0.65727212,3090.0,3089.7,0.093]
[1768028821971,0.35413197,3090.0,3089.7,0.093]
[1768028827507,3.23811021,3090.2,3089.7,0.093]
[1768028827708,0.30321235,3090.1,3089.7,0.093]
[1768028828002,0.30321235,3090.0,3089.7,0.093]
[1768028828210,3.23811021,3090.2,3089.7,0.093]
[1768028828425,0.30321796,3090.1,3089.7,0.093]
[1768028828600,0.30321796,3090.0,3089.7,0.093]
[1768028829820,0.30321796,3090.0,3089.7,1.013093]
[1768028831323,0.30321796,3090.0,3089.7,0.093]
[1768028833402,0.30330894,3089.9,3089.7,0.093]
[1768028833603,3.92041978,3090.1,3089.7,0.093]
[1768028833818,0.69555573,3090.0,3089.7,0.093]
[1768028834024,0.30331375,3089.9,3089.7,0.093]
[1768028838808,0.30331375,3089.9,3089.7,1.013093]
[1768028843634,0.30331375,3089.9,3089.6,0.00180664]
[1768028844007,0.30331375,3089.9,3089.4,0.255]
[1768028844836,3.53967548,3089.9,3089.4,0.255]
[1768028845037,0.30331375,3089.8,3089.4,0.255]
[1768028845834,0.30331375,3089.8,3089.4,1.175093]
[1768028847339,0.30331375,3089.8,3089.5,0.920093]
[1768028849841,0.30331375,3089.8,3089.7,0.001]
[1768028850141,0.30331375,3089.8,3089.4,1.175093]
[1768028853245,0.30331375,3089.8,3089.5,0.9977999]
[1768028860530,3.53978018,3089.8,3089.5,0.9977999]
[1768028860829,0.30331375,3089.7,3089.5,0.9977999]
[1768028861841,0.30331375,3089.6,3089.5,0.9977999]
[1768028862044,3.23639722,3089.9,3089.5,0.9977999]
[1768028862357,0.30349248,3089.8,3089.5,0.9977999]
[1768028862553,0.30349248,3089.7,3089.5,0.9977999]
[1768028864149,0.30349248,3089.7,3089.5,0.99373801]
[1768028864855,3.54006163,3089.7,3089.5,0.99373801]
[1768028865055,0.30349248,3089.6,3089.5,0.99373801]
[1768028866150,0.30349248,3089.7,3089.5,0.99373801]
[1768028867254,3.95886229,3089.7,3089.4,0.255]
[1768028867450,0.30349248,3089.6,3089.4,0.255]
[1768028867846,0.30349248,3089.6,3089.4,1e-08]
[1768028869859,0.30357861,3089.5,3089.4,1e-08]
[1768028875574,0.69947345,3089.5,3089.0,0.0008064]
[1768028875767,0.30357861,3089.4,3089.0,0.0008064]
[1768028875950,0.30357861,3089.4,3089.0,0.90490043]
[1768028876139,0.30357861,3089.3,3089.0,0.90490043]
[1768028876464,3.23672932,3089.6,3089.0,0.90490043]
[1768028876770,0.30371889,3089.5,3089.0,0.90490043]
[1768028876972,0.30371889,3089.4,3089.0,0.90490043]
[1768028877175,0.30371889,3089.3,3089.0,0.90490043]
[1768028877359,3.23672932,3089.6,3089.0,0.90490043]
[1768028877538,0.30369087,3089.5,3089.0,0.90490043]
[1768028877870,0.30369087,3089.4,3089.0,0.90490043]
[1768028878048,3.23672932,3089.6,3089.0,0.90490043]
[1768028878251,0.99289399,3089.5,3089.0,0.90490043]
[1768028878444,0.30368941,3089.4,3089.0,0.90490043]
[1768028878749,0.68920458,3089.5,3089.0,0.90490043]
[1768028878951,0.3036707,3089.4,3089.0,0.90490043]
[1768028879150,3.92599361,3089.5,3089.0,0.90490043]
[1768028879353,0.30367065,3089.4,3089.0,0.90490043]
[1768028879673,3.92599361,3089.5,3089.0,0.90490043]
[1768028879867,0.30365794,3089.4,3089.0,0.90490043]
[1768028880069,0.30365934,3089.3,3089.0,0.90490043]
[1768028880271,0.39259936,3089.4,3089.0,0.90490043]
[1768028880436,0.30366227,3089.3,3089.0,0.0008064]
[1768028880641,0.30366227,3089.2,3089.0,0.0008064]
[1768028880846,1.10172127,3089.3,3089.0,0.0008064]
[1768028881169,0.3036667,3089.2,3089.0,0.0008064]
[1768028881376,4.33871303,3089.3,3088.7,0.255808]
[1768028881562,3.76545089,3089.2,3088.7,0.255808]
[1768028881740,1.11403657,3089.1,3088.7,0.255808]
[1768028881940,0.30362018,3089.0,3088.7,0.255808]
[1768028882244,3.23699176,3089.3,3088.7,0.255808]
[1768028882469,0.30353077,3089.2,3088.7,0.255808]
[1768028882664,0.30353077,3089.1,3088.7,0.255808]
[1768028882980,3.23699176,3089.3,3088.7,0.255808]
[1768028883180,4.28325681,3089.2,3088.7,0.255808]
[1768028883413,0.3035293,3089.1,3088.7,0.255808]
[1768028883577,3.97972751,3089.2,3088.7,0.255808]
[1768028883788,0.30345139,3089.1,3088.7,0.255808]
[1768028883987,3.97972751,3089.2,3088.7,0.255808]
[1768028884208,0.70142414,3089.1,3088.7,0.255808]
[1768028884519,0.39797275,3089.1,3088.7,0.255808]
[1768028900385,3.97968503,3089.2,3088.7,0.255808]
[1768028900588,0.30327844,3089.1,3088.7,0.255808]
[1768028900746,3.97968503,3089.2,3088.7,0.255808]
[1768028900946,0.30327844,3089.1,3088.7,1.24569216]
[1768028901277,3.97968503,3089.2,3088.7,1.24569216]
[1768028901478,0.30330562,3089.1,3088.7,1.24569216]
[1768028901785,3.97968503,3089.2,3088.7,1.24569216]
[1768028901987,0.30330679,3089.1,3088.7,1.24569216]
[1768028902378,0.74260064,3089.2,3088.7,1.24569216]
[1768028902580,0.30334249,3089.1,3088.7,1.24569216]
[1768028902887,3.97969814,3089.2,3088.7,1.24569216]
[1768028903055,0.30334249,3089.1,3088.7,1.24569216]
[1768028903255,3.97969814,3089.2,3088.7,1.24569216]
[1768028903592,0.30334795,3089.1,3088.7,1.24569216]
[1768028903756,3.97969814,3089.2,3088.7,1.24569216]
[1768028903957,0.70135587,3089.1,3088.7,1.24569216]
[1768028904189,0.39796981,3089.1,3088.7,1.24569216]
[1768028904401,0.30343971,3089.0,3088.7,1.24569216]
[1768028904689,3.97969814,3089.2,3088.7,1.24569216]
[1768028904876,0.30343968,3089.1,3088.7,1.24569216]
[1768028905077,0.30343968,3089.0,3088.7,1.24569216]
[1768028905275,3.97969814,3089.2,3088.7,1.24569216]
[1768028905475,0.701477,3089.1,3088.7,1.24569216]
[1768028905655,0.30350719,3089.0,3088.7,1.24569216]
[1768028905986,3.97969814,3089.2,3088.7,1.24569216]
[1768028906154,0.30350719,3089.1,3088.7,1.24569216]
[1768028906485,0.30350719,3089.0,3088.7,1.24569216]
[1768028906687,3.97969814,3089.2,3088.7,1.24569216]
[1768028906866,0.30354688,3089.1,3088.7,1.24569216]
[1768028907184,0.30354688,3089.0,3088.7,1.24569216]
[1768028907364,3.97969814,3089.2,3088.7,1.24569216]
[1768028907564,0.30359615,3089.1,3088.7,1.24569216]
[1768028907776,0.30359615,3089.0,3088.7,1.24569216]
[1768028908076,3.97969814,3089.2,3088.7,1.24569216]
[1768028908278,0.70157039,3089.1,3088.7,1.24569216]
[1768028908477,0.30360058,3089.0,3088.7,1.24569216]
[1768028911153,0.30360058,3089.0,3088.8,0.98988416]
[1768028911548,0.30360058,3088.9,3088.8,0.98988416]
[1768028911783,0.30360058,3089.2,3088.8,0.98988416]
[1768028911967,0.30360058,3089.1,3088.8,0.98988416]
[1768028916273,0.30360058,3089.0,3088.8,0.98988416]
[1768028916461,0.30360058,3088.9,3088.8,0.98988416]
[1768028916870,0.30360058,3089.3,3088.8,0.98988416]
[1768028917071,0.30388055,3089.2,3088.8,0.98988416]
[1768028917302,0.30388055,3089.1,3088.8,0.98988416]
[1768028917600,0.30388055,3089.0,3088.8,0.98988416]
[1768028917804,0.0008064,3089.4,3088.8,0.98988416]
[1768028918100,0.30387467,3089.3,3088.8,0.98988416]
[1768028918399,0.30387467,3089.2,3088.8,0.98988416]
[1768028918590,0.30387467,3089.1,3088.8,0.98988416]
[1768028918790,0.30387467,3089.0,3088.8,0.98988416]
[1768028918990,3.88512743,3089.4,3088.8,0.98988416]
[1768028919178,0.69238239,3089.3,3088.8,0.98988416]
[1768028919381,0.30386965,3089.2,3088.8,0.98988416]
[1768028919616,0.30386965,3089.1,3088.8,0.98988416]
[1768028919910,0.30386965,3089.0,3088.8,0.98988416]
[1768028920112,0.38851274,3089.3,3088.8,0.98988416]
[1768028920274,0.73122368,3089.2,3088.8,0.98988416]
[1768028920474,0.30385966,3089.1,3088.8,0.98988416]
[1768028922807,0.002,3089.0,3088.8,0.98988416]
[1768028926001,0.002,3089.0,3088.7,0.255808]
[1768028926195,0.002,3089.0,3088.7,1.19030217]
[1768028927306,0.002,3089.0,3088.8,0.93449417]
[1768028928037,0.002,3089.0,3088.7,0.255808]
[1768028928409,0.002,3089.0,3088.7,1.19030217]
[1768028930506,0.002,3089.0,3088.7,0.255808]
[1768028930704,0.30382199,3088.9,3088.7,0.255808]
[1768028931003,0.002,3089.0,3088.7,0.255808]
[1768028931196,0.30382208,3088.9,3088.7,0.255808]
[1768028931396,0.002,3089.0,3088.7,0.255808]
[1768028931611,0.30382342,3088.9,3088.7,0.255808]
[1768028931809,0.002,3089.0,3088.7,0.255808]
[1768028932018,0.3038234,3088.9,3088.7,0.255808]
[1768028932313,0.002,3089.0,3088.7,0.255808]
[1768028932610,0.30382528,3088.9,3088.7,0.255808]
[1768028932788,0.002,3089.0,3088.7,0.255808]
[1768028932994,0.30383108,3088.9,3088.7,0.255808]
[1768028933185,0.002,3089.0,3088.7,0.255808]
[1768028933386,0.30382999,3088.9,3088.7,0.255808]
[1768028933714,0.002,3089.0,3088.7,0.255808]
[1768028933912,0.30383026,3088.9,3088.7,0.255808]
[1768028934082,0.002,3089.0,3088.7,0.255808]
[1768028934283,0.30382842,3088.9,3088.7,0.255808]
[1768028934617,0.002,3089.0,3088.7,0.255808]
[1768028934813,0.30382842,3088.9,3088.7,0.255808]
[1768028935012,0.002,3089.0,3088.7,0.255808]
[1768028935216,0.30382379,3088.9,3088.7,0.255808]
[1768028935539,0.002,3089.0,3088.7,0.255808]
[1768028935714,0.30382505,3088.9,3088.7,0.255808]
[1768028935914,0.002,3089.0,3088.7,0.255808]
[1768028936116,0.30382502,3088.9,3088.7,0.255808]
[1768028936315,0.002,3089.0,3088.7,0.255808]
[1768028936518,0.30382662,3088.9,3088.7,0.255808]
[1768028936688,0.002,3089.0,3088.7,0.255808]
[1768028936888,0.30382659,3088.9,3088.7,0.255808]
[1768028937090,0.002,3089.0,3088.7,0.255808]
[1768028937319,0.30382831,3088.9,3088.7,0.255808]
[1768028937490,0.002,3089.0,3088.7,0.255808]
[1768028937691,0.30382831,3088.9,3088.7,0.255808]
[1768028937915,0.002,3089.0,3088.7,0.255808]
[1768028938105,0.30382833,3088.9,3088.7,0.255808]
[1768028938306,0.002,3089.0,3088.7,0.255808]
[1768028938606,0.30383009,3088.9,3088.7,0.255808]
[1768028938919,0.002,3089.0,3088.7,0.255808]
[1768028939219,0.30383012,3088.9,3088.7,0.255808]
[1768028939415,0.91291847,3088.9,3088.7,0.255808]
[1768028939726,0.002,3089.0,3088.7,0.255808]
[1768028940017,0.30383211,3088.9,3088.7,0.255808]
[1768028940198,0.002,3089.0,3088.7,0.255808]
[1768028940517,0.30383346,3088.9,3088.7,0.255808]
[1768028940716,0.002,3089.0,3088.7,0.255808]
[1768028940899,0.30383346,3088.9,3088.7,0.255808]
[1768028941098,0.002,3089.0,3088.7,0.255808]
[1768028941418,0.30383511,3088.9,3088.7,1.20029643]
[1768028941621,0.002,3089.0,3088.8,0.94448843]
[1768028941816,0.30383496,3088.9,3088.8,0.94448843]
[1768028944928,0.002,3089.0,3088.8,0.94448843]
[1768028982768,0.002,3089.0,3088.9,0.94647619]
[1768028990054,0.002,3089.3,3089.0,0.94647619]
[1768029002165,0.002,3089.3,3088.8,3.2374873]
[1768029003269,0.002,3089.3,3088.8,4.19227078]
[1768029004608,0.002,3089.3,3088.8,0.95478348]
[1768029005404,0.002,3089.3,3088.8,4.1922807]
[1768029007412,0.002,3089.0,3088.8,4.1922807]
[1768029007582,0.002,3089.3,3088.8,4.1922807]
[1768029014517,0.002,3089.3,3088.8,0.95478348]
[1768029016719,0.002,3089.3,3088.8,4.19227402]
[1768029018168,0.002,3089.3,3088.8,3.23749054]
[1768029018334,0.91036781,3089.3,3088.8,3.23749054]
[1768029019328,0.002,3089.0,3088.8,4.19227402]
[1768029019485,0.002,3089.3,3088.8,4.19227402]
[1768029020301,0.002,3089.3,3088.8,0.95478348]
[1768029023748,0.002,3089.3,3088.8,4.19227626]
[1768029024109,0.002,3089.3,3088.9,0.95478348]
[1768029026256,0.002,3089.3,3089.0,0.95478348]
[1768029029456,0.002,3089.3,3089.0,4.1920639]
[1768029029958,0.002,3089.3,3089.0,0.95478348]
[1768029031364,0.00280664,3090.0,3089.2,0.95478348]
[1768029031564,0.90836781,3089.8,3089.3,0.255]
[1768029031859,0.90836781,3089.6,3089.3,0.255]
[1768029034169,0.90836781,3090.5,3089.4,0.97384894]
[1768029034365,0.08943209,3090.4,3089.6,0.97465566]
[1768029034572,0.09224316,3090.6,3089.6,0.97465566]
[1768029034872,0.09224316,3090.6,3089.7,0.12947602]
[1768029035167,0.09224316,3090.6,3089.7,1.10332496]
[1768029035335,0.00281107,3090.6,3089.7,1.10332496]
[1768029035540,0.00281107,3090.6,3089.7,0.97384894]
[1768029035865,0.00281107,3090.6,3089.9,0.97384894]
[1768029036242,0.00281107,3090.6,3090.0,0.97384894]
[1768029036669,0.00281107,3090.6,3090.1,0.97384894]
[1768029043073,0.002,3090.3,3090.1,0.97384894]
[1768029050555,0.002,3090.3,3090.0,0.255]
[1768029051457,0.002,3090.3,3090.1,0.98577195]
[1768029066396,0.002,3090.3,3089.9,4.20486291]
[1768029066574,0.002,3090.3,3090.0,0.9685542]
[1768029082514,0.002,3090.3,3089.8,4.20497287]
[1768029083582,0.002,3090.3,3089.9,0.9685542]
[1768029088102,0.002,3090.3,3089.7,4.20509195]
[1768029089428,0.002,3090.3,3090.2,0.001]
[1768029097132,0.002,3090.3,3090.2,0.98728997]
[1768029098393,0.002,3090.3,3090.2,0.001]
[1768029100429,0.002,3090.3,3090.2,0.98728997]
[1768029108262,0.002,3090.3,3090.2,0.001]
[1768029108801,0.257,3090.6,3090.2,0.001]
[1768029109002,0.30369619,3090.5,3090.2,0.001]
[1768029109235,0.257,3090.6,3090.2,0.001]
[1768029109443,0.30368524,3090.5,3090.2,0.001]
[1768029109616,0.257,3090.6,3090.2,0.001]
[1768029109818,0.30368521,3090.5,3090.2,0.001]
[1768029110003,0.257,3090.6,3090.2,0.001]
[1768029110206,0.30368524,3090.5,3090.2,0.001]
[1768029110428,0.257,3090.6,3090.2,0.001]
[1768029110627,0.30367588,3090.5,3090.2,0.001]
[1768029110817,0.257,3090.6,3090.2,0.001]
[1768029111017,0.30367588,3090.5,3090.2,0.001]
[1768029111240,0.257,3090.6,3090.2,0.001]
[1768029111418,0.30366818,3090.5,3090.2,0.001]
[1768029111617,0.0028441,3090.7,3090.2,3.46113725]
[1768029111817,0.30365446,3090.6,3090.2,3.46113725]
[1768029112138,0.0028441,3090.7,3090.2,0.001]
[1768029112639,0.00084411,3090.7,3090.2,0.001]
[1768029112819,0.00084411,3090.7,3090.3,0.00084494]
[1768029113731,0.00084411,3090.7,3090.3,0.95147842]
[1768029114344,0.00084411,3090.7,3090.3,0.00084494]
[1768029115418,0.00084411,3090.7,3090.3,0.95147842]
[1768029115920,0.00084411,3090.7,3090.3,0.00084494]
[1768029118259,0.00080568,3091.0,3090.5,3.46013725]
[1768029118454,0.00080568,3091.0,3090.6,0.95063348]
[1768029118816,0.00080568,3091.0,3090.5,3.58958687]
[1768029119169,0.00080568,3091.0,3090.5,1.0800831]
[1768029120230,0.00080568,3091.0,3090.5,0.12944962]
[1768029120467,0.00080568,3091.0,3090.3,4.1873991]
[1768029120679,0.00080568,3091.0,3090.3,0.95147842]
[1768029120958,0.09023777,3091.0,3090.3,0.95147842]
[1768029122077,0.08823778,3091.0,3090.6,0.00080576]
[1768029122295,0.000806,3093.0,3092.2,0.95063348]
[1768029122565,0.000806,3092.8,3091.8,0.95143836]
[1768029122762,0.000806,3092.6,3091.8,0.95143836]
[1768029122963,0.000806,3092.6,3092.3,0.95063348]
[1768029123135,0.000806,3092.9,3092.3,0.95063348]
[1768029123463,0.255,3092.8,3092.3,1.89476663]
[1768029123835,0.255806,3092.8,3092.3,0.95063348]
[1768029124238,0.000806,3092.7,3092.3,0.95063348]
[1768029124467,0.254,3092.6,3092.3,0.95063348]
[1768029126134,0.254806,3092.6,3092.3,0.95063348]
[1768029126328,0.254806,3092.6,3092.3,0.85629322]
[1768029126329,0.000806,3092.5,3092.3,0.85629322]
[1768029126553,0.000806,3092.5,3091.8,3.23513068]
[1768029127360,0.000806,3092.5,3091.8,0.00080488]
[1768029127678,0.254,3092.4,3091.8,4.17928555]
[1768029127884,6.69331951,3093.0,3091.8,0.94493803]
[1768029127885,0.42044257,3093.0,3091.8,0.94493803]
[1768029128079,0.254,3093.0,3092.5,0.94413315]
[1768029128251,0.00080392,3093.2,3092.9,0.254]
[1768029128437,0.254,3093.1,3092.5,0.94413315]
[1768029128636,0.00080392,3093.2,3092.6,0.94413315]
[1768029128836,0.254,3093.1,3092.6,5.14782779]
[1768029129165,0.254,3093.1,3092.7,3.23342051]
[1768029129665,0.00080392,3093.2,3092.6,0.94413315]
[1768029129666,0.00080392,3093.2,3092.8,3.23331342]
[1768029129834,0.254,3093.1,3092.7,0.94413315]
[1768029130038,0.254,3093.1,3092.7,4.17752184]
[1768029130565,0.254,3093.1,3092.7,3.23338869]
[1768029130748,0.254,3093.0,3092.7,3.23338869]
[1768029131070,0.254,3093.0,3092.5,4.20384843]
[1768029131269,0.254,3093.0,3092.6,3.23350129]
[1768029134291,0.254,3093.0,3092.5,0.94413315]
[1768029134491,0.254,3092.9,3092.5,0.94413315]
[1768029135880,0.00080392,3093.2,3092.9,0.94413315]
[1768029136062,1e-08,3093.2,3092.9,0.94413315]
[1768029136263,0.00080384,3094.1,3093.6,0.16851917]
[1768029136583,0.254,3094.0,3093.6,0.16851917]
[1768029136943,0.254,3094.0,3092.9,0.94413315]
[1768029137236,0.00080384,3094.1,3092.9,0.94413315]
[1768029137438,0.254,3093.9,3092.9,0.94413315]
[1768029137674,0.06485926,3093.8,3092.8,0.000804]
[1768029137972,0.002,3092.9,3092.8,0.000804]
[1768029138180,0.256,3092.9,3092.8,0.000804]
[1768029138342,0.002,3092.9,3092.8,0.000804]
[1768029138546,0.254,3093.2,3092.9,0.94413315]
[1768029138784,0.00080384,3094.1,3092.9,0.94413315]
[1768029138985,3.48607197,3094.0,3092.8,0.94493715]
[1768029139279,0.67189263,3093.9,3092.8,0.94493715]
[1768029139689,0.254,3093.8,3092.8,0.94493715]
[1768029140059,0.67189263,3093.9,3092.8,0.94493715]
[1768029140247,0.254,3093.8,3092.8,0.94493715]
[1768029141080,0.254,3093.8,3092.9,0.94413315]
[1768029141249,0.41581122,3093.7,3092.9,0.94413315]
[1768029141650,0.41581122,3093.7,3092.8,3.23407108]
[1768029142279,0.254,3093.6,3092.8,4.17820423]
[1768029142494,0.254,3093.6,3092.9,0.94413315]
[1768029142951,0.254,3093.6,3092.8,0.000804]
[1768029143681,0.39022522,3093.5,3092.8,0.000804]
[1768029146664,0.39022522,3093.5,3092.8,0.94493715]
[1768029146865,3.23214702,3094.0,3092.8,0.94493715]
[1768029146866,0.254,3093.4,3092.8,0.000804]
[1768029147178,0.254,3093.3,3092.8,0.000804]
[1768029150691,0.002,3093.4,3092.8,0.94493715]
[1768029150899,0.254,3093.2,3092.8,0.94493715]
[1768029151091,0.002,3093.4,3092.8,0.94493715]
[1768029151267,0.254,3093.3,3092.8,0.94493715]
[1768029151466,0.002,3093.4,3092.8,0.94493715]
[1768029151669,0.254,3093.2,3092.8,0.94493715]
[1768029151992,0.002,3093.4,3092.8,0.94493715]
[1768029152188,0.5567295,3093.3,3092.8,0.94493715]
[1768029152361,0.3027295,3093.2,3092.8,0.94493715]
[1768029152562,0.002,3093.4,3092.8,0.94493715]
[1768029152753,0.55672637,3093.3,3092.8,0.94493715]
[1768029152980,0.30272637,3093.2,3092.8,0.94493715]
[1768029153195,0.254,3093.3,3092.8,0.94493715]
[1768029153485,0.3027796,3093.2,3092.8,0.94493715]
[1768029153688,0.254,3093.3,3092.8,0.94493715]
[1768029153890,0.3027796,3093.2,3092.8,0.000804]
[1768029154054,0.3027796,3093.1,3092.2,0.90315697]
[1768029154257,6.46670379,3093.2,3092.2,0.90315697]
[1768029154258,0.97972794,3093.0,3092.2,0.90315697]
[1768029154497,0.3027796,3092.9,3092.2,0.90315697]
[1768029154699,0.254,3092.8,3092.2,0.90315697]
[1768029154868,0.55687296,3092.7,3092.2,0.90315697]
[1768029155079,1.64748448,3093.0,3092.2,0.90315697]
[1768029155080,0.000804,3093.2,3092.6,0.90315697]
[1768029155276,0.254804,3093.2,3092.6,0.90315697]
[1768029156193,0.002,3093.4,3093.1,0.90315697]
[1768029163200,0.256,3093.4,3093.1,0.90315697]
[1768029167201,0.256,3093.4,3092.9,0.90315697]
[1768029170308,0.002,3093.4,3092.9,0.90315697]
[1768029170603,0.254,3093.3,3092.9,0.90315697]
[1768029172605,0.254,3093.3,3092.8,0.00080408]
[1768029173113,0.254,3093.3,3092.8,0.91388595]
[1768029174305,0.002,3093.4,3092.8,0.91388595]
[1768029174502,0.254,3093.3,3093.2,0.001]
[1768029179319,0.254,3093.3,3092.8,0.00080408]
[1768029179624,0.254,3093.3,3092.8,0.91388595]
[1768029179826,0.002,3093.4,3092.8,0.91388595]
[1768029180032,0.254,3093.2,3092.8,0.91388595]
[1768029186415,0.254,3093.2,3093.1,0.001]
[1768029187610,0.55742,3093.2,3093.1,0.001]
[1768029187946,0.55742,3093.2,3092.8,0.00080408]
[1768029188099,0.68244506,3093.1,3092.8,0.00080408]
[1768029188302,0.37902506,3093.1,3092.8,0.00080408]
[1768029191338,0.254,3093.0,3092.8,0.95882465]
[1768029192525,3.23470704,3093.4,3092.8,0.95882465]
[1768029192836,0.254,3093.1,3092.8,0.95882465]
[1768029193342,0.254,3093.1,3092.8,0.00080408]
[1768029199525,0.254,3093.0,3092.8,0.00080408]
[1768029200155,0.254,3092.9,3092.8,0.00080408]
[1768029203133,0.254,3092.9,3092.8,0.95882465]
[1768029203649,0.254,3092.9,3092.3,0.79602057]
[1768029203852,0.254,3092.8,3092.3,0.79602057]
[1768029205330,0.254,3092.8,3092.1,0.95902057]
[1768029206318,0.34873158,3092.7,3092.1,0.95902057]
[1768029210655,0.34873158,3092.7,3092.4,0.001]
[1768029210857,0.254,3092.8,3092.4,0.001]
[1768029211152,0.254,3092.8,3092.4,0.95902057]
[1768029213127,0.254,3092.7,3092.4,0.95902057]
[1768029223574,0.256,3092.7,3092.4,0.95902057]
[1768029224574,0.99373807,3092.6,3092.4,0.95902057]
[1768029227188,0.99373807,3092.6,3092.4,0.001]
[1768029227502,0.99373807,3092.6,3092.4,0.93430311]
[1768029234387,0.99373807,3092.6,3092.4,0.001]
[1768029237103,0.99573807,3092.6,3092.4,0.001]
[1768029239183,0.30355931,3092.5,3092.4,0.001]
[1768029240287,0.30355931,3092.5,3092.1,0.001]
[1768029240583,0.35391089,3092.4,3092.1,0.001]
[1768029241493,0.99373807,3092.3,3092.1,0.92973849]
[1768029241790,1.24773807,3092.3,3092.1,0.92973849]
[1768029242993,0.99373807,3092.3,3092.1,0.92973849]
[1768029245564,0.99373807,3092.3,3092.1,0.001]
[1768029246066,0.99373807,3092.3,3092.1,0.97607846]
[1768029247863,0.99373807,3092.3,3092.1,0.001]
[1768029249991,0.99173808,3092.3,3092.1,0.001]
[1768029252401,0.99173808,3092.3,3092.2,0.97507846]
[1768029256612,0.254,3092.4,3092.2,0.97507846]
[1768029257279,0.25200001,3092.4,3092.2,0.97507846]
[1768029258504,0.99173808,3092.3,3092.2,0.97507846]
[1768029260510,0.00080608,3092.0,3091.7,0.97507846]